Workbook

Sheet tabula
C2: "Ziemassvētku filmu viktorīna" (tiešsaistē / vebinārā) | 2024.gada 26.decembris
B3: Grupa | C3: # | D3: Dalībnieks | Raunds | Tēma | E3: 1 | F3: 2 | G3: 3 | H3: 4 | I3: 5 | J3: 6 | K3: 7 | L3: 8 | M3: 9 | N3: 10 | O3: KOPĀ | P3: Laiks kopā uz pareizajām atbildēm | Q3: Pareizās atbildes (max) | R3: Vid.laiks uz 1 pareizo atb.
E4: Pavediens | F4: Video | G4: Ekspresis | H4: Vizuālais | I4: Citāti | J4: Galvenie varoņi (kolāži) | K4: Risks: animācijas filmas | L4: Kas kopīgs? | M4: Liekais pazūd: lokācijas | N4: Audio
D5: Max punkti raundā (bez bonusiem) | E5: 150 | F5: 150 | G5: 240 | H5: 150 | I5: 150 | J5: 150 | K5: 120 | L5: 180 | M5: 150 | N5: 150 | O5: =SUM(E5:N5) -> 1590
C6: Jautājumi | E6: 6 | F6: 6 | G6: 12 | H6: 6 | I6: 6 | J6: 6 | K6: 6 | L6: 7 | M6: 6 | N6: 6 | Q6: =SUM(E6:N6) -> 67
D7: Vidējie rādītāji | E7: =ROUND(AVERAGE(E8:E201),1) -> 52.8 | F7: =ROUND(AVERAGE(F8:F201),1) -> 79.3 | G7: =ROUND(AVERAGE(G8:G201),1) -> 146.6 | H7: =ROUND(AVERAGE(H8:H201),1) -> 65.2 | I7: =ROUND(AVERAGE(I8:I201),1) -> 82.9 | J7: =ROUND(AVERAGE(J8:J201),1) -> 83.3 | K7: =ROUND(AVERAGE(K8:K201),1) -> 33.3 | L7: =ROUND(AVERAGE(L8:L201),1) -> 131.3 | M7: =ROUND(AVERAGE(M8:M201),1) -> 85.8 | N7: =ROUND(AVERAGE(N8:N201),1) -> 65.2 | O7: =ROUND(AVERAGE(O8:O201),1) -> 825.8 | P7: - | Q7: =ROUND(AVERAGE(Q8:Q201),1) -> 45.8 | R7: -
B8: 3 | C8: 1 | D8: nezinu | E8: 82 | F8: 104 | G8: 185 | H8: 110 | I8: 103 | J8: 120 | K8: 81 | L8: 148 | M8: 127 | N8: 96 | O8: 1156 | P8: 09 min. 05,913 | Q8: 61 | R8: 08,949 sek.
B9: 1 | C9: 2 | D9: Shakin’ Stevens | E9: 61 | F9: 137 | G9: 184 | H9: 110 | I9: 108 | J9: 135 | K9: 70 | L9: 154 | M9: 101 | N9: 76 | O9: 1136 | P9: 06 min. 33,964 | Q9: 57 | R9: 06,912 sek.
B10: 1 | C10: 3 | D10: HektoraFamilija | E10: 73 | F10: 96 | G10: 200 | H10: 86 | I10: 110 | J10: 112 | K10: 73 | L10: 160 | M10: 144 | N10: 79 | O10: 1133 | P10: 06 min. 23,972 | Q10: 56 | R10: 06,857 sek.
B11: 3 | C11: 4 | D11: ROGAS LIEPZAROS | E11: 82 | F11: 132 | G11: 158 | H11: 90 | I11: 100 | J11: 116 | K11: 100 | L11: 170 | M11: 102 | N11: 78 | O11: 1128 | P11: 07 min. 25,348 | Q11: 59 | R11: 07,548 sek.
B12: 1 | C12: 5 | D12: Attīstībai/Pret | E12: 65 | F12: 103 | G12: 161 | H12: 121 | I12: 94 | J12: 113 | K12: 96 | L12: 161 | M12: 119 | N12: 85 | O12: 1118 | P12: 06 min. 05,670 | Q12: 56 | R12: 06,530 sek.
B13: 3 | C13: 6 | D13: ttomstt | E13: 63 | F13: 123 | G13: 174 | H13: 107 | I13: 113 | J13: 108 | K13: 58 | L13: 176 | M13: 78 | N13: 108 | O13: 1108 | P13: 08 min. 25,299 | Q13: 59 | R13: 08,564 sek.
B14: 1 | C14: 7 | D14: Ļoti labi | E14: 97 | F14: 121 | G14: 152 | H14: 64 | I14: 126 | J14: 77 | K14: 80 | L14: 145 | M14: 134 | N14: 106 | O14: 1102 | P14: 07 min. 44,965 | Q14: 58 | R14: 08,017 sek.
B15: 1 | C15: 8 | D15: Mīluļu slepenā dzīve | E15: 62 | F15: 123 | G15: 190 | H15: 116 | I15: 69 | J15: 91 | K15: 78 | L15: 160 | M15: 145 | N15: 65 | O15: 1099 | P15: 06 min. 27,466 | Q15: 55 | R15: 07,045 sek.
B16: 2 | C16: 9 | D16: lielmezi.lv | E16: 80 | F16: 113 | G16: 171 | H16: 107 | I16: 114 | J16: 85 | K16: 52 | L16: 169 | M16: 94 | N16: 99 | O16: 1084 | P16: 08 min. 25,668 | Q16: 58 | R16: 08,718 sek.
B17: 3 | C17: 10 | D17: Te tikai Dieviņš palīdzēs | E17: 77 | F17: 101 | G17: 165 | H17: 77 | I17: 112 | J17: 106 | K17: 85 | L17: 139 | M17: 105 | N17: 114 | O17: 1081 | P17: 09 min. 32,297 | Q17: 60 | R17: 09,538 sek.
B18: 2 | C18: 11 | D18: Neļķu iela | E18: 83 | F18: 71 | G18: 156 | H18: 87 | I18: 118 | J18: 117 | K18: 93 | L18: 164 | M18: 128 | N18: 63 | O18: 1080 | P18: 06 min. 36,186 | Q18: 55 | R18: 07,203 sek.
B19: 2 | C19: 12 | D19: Inspektors ieskandina ritmā | E19: 64 | F19: 95 | G19: 147 | H19: 114 | I19: 95 | J19: 99 | K19: 104 | L19: 149 | M19: 103 | N19: 94 | O19: 1064 | P19: 08 min. 07,828 | Q19: 57 | R19: 08,558 sek.
B20: 2 | C20: 13 | D20: Pīters Penis | E20: 105 | F20: 100 | G20: 197 | H20: 99 | I20: 87 | J20: 93 | K20: 25 | L20: 137 | M20: 148 | N20: 72 | O20: 1063 | P20: 05 min. 56,503 | Q20: 54 | R20: 06,602 sek.
B21: 3 | C21: 14 | D21: Sindija DJV | E21: 30 | F21: 102 | G21: 201 | H21: 65 | I21: 92 | J21: 124 | K21: 62 | L21: 157 | M21: 150 | N21: 61 | O21: 1044 | P21: 04 min. 43,609 | Q21: 51 | R21: 05,561 sek.
B22: 1 | C22: 15 | D22: PAGASTMĀJA | E22: 90 | F22: 134 | G22: 137 | H22: 94 | I22: 105 | J22: 70 | K22: 74 | L22: 145 | M22: 110 | N22: 84 | O22: 1043 | P22: 06 min. 21,359 | Q22: 54 | R22: 07,062 sek.
B23: 3 | C23: 16 | D23: Mada_for_president | E23: 77 | F23: 130 | G23: 189 | H23: 76 | I23: 116 | J23: 106 | K23: 51 | L23: 137 | M23: 74 | N23: 77 | O23: 1033 | P23: 07 min. 35,540 | Q23: 55 | R23: 08,283 sek.
B24: 3 | C24: 17 | D24: Pelēkie zirņi | E24: 91 | F24: 103 | G24: 216 | H24: 47 | I24: 88 | J24: 114 | K24: 50 | L24: 139 | M24: 124 | N24: 59 | O24: 1031 | P24: 04 min. 31,850 | Q24: 51 | R24: 05,330 sek.
B25: 3 | C25: 18 | D25: Pringļu Egle | E25: 64 | F25: 134 | G25: 156 | H25: 102 | I25: 80 | J25: 96 | K25: 40 | L25: 158 | M25: 93 | N25: 99 | O25: 1022 | P25: 07 min. 19,108 | Q25: 55 | R25: 07,984 sek.
B26: 1 | C26: 19 | D26: Kas neriskē,nedzer šampanieti | E26: 77 | F26: 91 | G26: 139 | H26: 124 | I26: 109 | J26: 79 | K26: 36 | L26: 143 | M26: 108 | N26: 107 | O26: 1013 | P26: 08 min. 24,725 | Q26: 55 | R26: 09,177 sek.
B27: 1 | C27: 20 | D27: Rupuči, turās ārzemēs!!! | E27: 66 | F27: 107 | G27: 189 | H27: 81 | I27: 107 | J27: 95 | K27: 36 | L27: 124 | M27: 98 | N27: 80 | O27: 983 | P27: 05 min. 12,408 | Q27: 50 | R27: 06,248 sek.
B28: 3 | C28: 21 | D28: Gaiļi | E28: 65 | F28: 118 | G28: 146 | H28: 66 | I28: 93 | J28: 98 | K28: 45 | L28: 147 | M28: 129 | N28: 69 | O28: 976 | P28: 07 min. 47,345 | Q28: 55 | R28: 08,497 sek.
C29: 22 | D29: PAKO6 | E29: 63 | F29: 87 | G29: 146 | H29: 64 | I29: 111 | J29: 91 | K29: 76 | L29: 160 | M29: 75 | N29: 98 | O29: 971 | P29: 10 min. 58,112 | Q29: 58 | R29: 11,347 sek.
C30: 23 | D30: Garie | E30: 52 | F30: 89 | G30: 144 | H30: 84 | I30: 81 | J30: 114 | K30: 63 | L30: 144 | M30: 115 | N30: 67 | O30: 953 | P30: 06 min. 28,316 | Q30: 49 | R30: 07,925 sek.
C31: 24 | D31: Saies | E31: 76 | F31: 104 | G31: 166 | H31: 105 | I31: 94 | J31: 109 | K31: 13 | L31: 119 | M31: 110 | N31: 56 | O31: 952 | P31: 07 min. 09,792 | Q31: 52 | R31: 08,265 sek.
C32: 25 | D32: Salenieki | E32: 76 | F32: 85 | G32: 110 | H32: 108 | I32: 101 | J32: 89 | K32: 75 | L32: 165 | M32: 84 | N32: 58 | O32: 951 | P32: 07 min. 55,384 | Q32: 53 | R32: 08,970 sek.
C33: 26 | D33: Petūnijas | E33: 90 | F33: 92 | G33: 160 | H33: 68 | I33: 90 | J33: 104 | K33: 7 | L33: 144 | M33: 85 | N33: 107 | O33: 947 | P33: 05 min. 18,837 | Q33: 49 | R33: 06,507 sek.
C34: 27 | D34: Džeinas jampadracis | E34: 27 | F34: 90 | G34: 132 | H34: 85 | I34: 110 | J34: 111 | K34: 71 | L34: 148 | M34: 82 | N34: 91 | O34: 947 | P34: 04 min. 08,865 | Q34: 46 | R34: 05,410 sek.
C35: 28 | D35: Suņu dienas | E35: 56 | F35: 125 | G35: 133 | H35: 89 | I35: 67 | J35: 102 | K35: -4 | L35: 154 | M35: 126 | N35: 86 | O35: 934 | P35: 07 min. 44,305 | Q35: 50 | R35: 09,286 sek.
C36: 29 | D36: MELDRI | E36: 56 | F36: 73 | G36: 112 | H36: 84 | I36: 115 | J36: 79 | K36: 84 | L36: 151 | M36: 72 | N36: 107 | O36: 933 | P36: 11 min. 17,482 | Q36: 55 | R36: 12,318 sek.
C37: 30 | D37: Žiperi | E37: 83 | F37: 97 | G37: 172 | H37: 48 | I37: 90 | J37: 118 | K37: 20 | L37: 168 | M37: 92 | N37: 39 | O37: 927 | P37: 04 min. 54,264 | Q37: 47 | R37: 06,261 sek.
C38: 31 | D38: Mikrene | E38: 52 | F38: 99 | G38: 126 | H38: 106 | I38: 85 | J38: 118 | K38: 51 | L38: 118 | M38: 82 | N38: 66 | O38: 903 | P38: 07 min. 31,426 | Q38: 50 | R38: 09,029 sek.
C39: 32 | D39: Dusmīgie Bebri | E39: 75 | F39: 66 | G39: 152 | H39: 73 | I39: 91 | J39: 91 | K39: 10 | L39: 165 | M39: 94 | N39: 79 | O39: 896 | P39: 07 min. 57,966 | Q39: 51 | R39: 09,372 sek.
C40: 33 | D40: viens ar pus aliņš | E40: 25 | F40: 65 | G40: 195 | H40: 67 | I40: 113 | J40: 85 | K40: 42 | L40: 136 | M40: 89 | N40: 77 | O40: 894 | P40: 06 min. 50,908 | Q40: 48 | R40: 08,561 sek.
C41: 34 | D41: Stāmerienas buljons | E41: 69 | F41: 96 | G41: 99 | H41: 65 | I41: 91 | J41: 88 | K41: 81 | L41: 141 | M41: 80 | N41: 82 | O41: 892 | P41: 10 min. 13,849 | Q41: 54 | R41: 11,368 sek.
C42: 35 | D42: Gailis viesturs | E42: 67 | F42: 89 | G42: 137 | H42: 59 | I42: 98 | J42: 96 | K42: 58 | L42: 144 | M42: 67 | N42: 66 | O42: 881 | P42: 07 min. 42,471 | Q42: 50 | R42: 09,249 sek.
C43: 36 | D43: Prezidenta radinieki | E43: 43 | F43: 71 | G43: 140 | H43: 74 | I43: 87 | J43: 94 | K43: 55 | L43: 113 | M43: 98 | N43: 100 | O43: 875 | P43: 12 min. 46,636 | Q43: 57 | R43: 13,450 sek.
C44: 37 | D44: Speķis | E44: 68 | F44: 67 | G44: 177 | H44: 52 | I44: 96 | J44: 75 | K44: 64 | L44: 166 | M44: 61 | N44: 46 | O44: 872 | P44: 06 min. 01,768 | Q44: 46 | R44: 07,865 sek.
C45: 38 | D45: Emsy | E45: 64 | F45: 66 | G45: 178 | H45: 64 | I45: 113 | J45: 61 | K45: 23 | L45: 115 | M45: 104 | N45: 46 | O45: 834 | P45: 05 min. 27,809 | Q45: 45 | R45: 07,285 sek.
C46: 39 | D46: Skatāmies citas filmas | E46: 50 | F46: 58 | G46: 109 | H46: 42 | I46: 71 | J46: 86 | K46: 54 | L46: 157 | M46: 99 | N46: 94 | O46: 820 | P46: 08 min. 38,926 | Q46: 48 | R46: 10,811 sek.
C47: 40 | D47: Ziemassvētku rūķi | E47: 63 | F47: 100 | G47: 179 | H47: 60 | I47: 68 | J47: 47 | K47: 62 | L47: 96 | M47: 78 | N47: 63 | O47: 816 | P47: 04 min. 26,816 | Q47: 41 | R47: 06,508 sek.
C48: 41 | D48: Swan | E48: 68 | F48: 89 | G48: 150 | H48: 80 | I48: 45 | J48: 83 | K48: 10 | L48: 161 | M48: 65 | N48: 63 | O48: 814 | P48: 07 min. 43,258 | Q48: 47 | R48: 09,857 sek.
C49: 42 | D49: Pūces | E49: 55 | F49: 86 | G49: 114 | H49: 37 | I49: 83 | J49: 114 | K49: 32 | L49: 135 | M49: 79 | N49: 78 | O49: 813 | P49: 07 min. 52,705 | Q49: 46 | R49: 10,276 sek.
C50: 43 | D50: BīPī | E50: 45 | F50: 46 | G50: 184 | H50: 90 | I50: 70 | J50: 71 | K50: 34 | L50: 124 | M50: 91 | N50: 46 | O50: 801 | P50: 02 min. 19,790 | Q50: 38 | R50: 03,679 sek.
C51: 44 | D51: 2-22 | E51: 71 | F51: 109 | G51: 176 | H51: 37 | I51: 67 | J51: 94 | K51: -13 | L51: 138 | M51: 84 | N51: 35 | O51: 798 | P51: 07 min. 41,986 | Q51: 47 | R51: 09,829 sek.
C52: 45 | D52: AgInDa | E52: 51 | F52: 75 | G52: 161 | H52: 62 | I52: 81 | J52: 77 | K52: 0 | L52: 144 | M52: 95 | N52: 42 | O52: 788 | P52: 10 min. 44,615 | Q52: 50 | R52: 12,892 sek.
C53: 46 | D53: Strocha | E53: 38 | F53: 80 | G53: 131 | H53: 62 | I53: 65 | J53: 65 | K53: 42 | L53: 168 | M53: 81 | N53: 54 | O53: 786 | P53: 06 min. 28,956 | Q53: 43 | R53: 09,045 sek.
C54: 47 | D54: Liepājas filologi | E54: 65 | F54: 68 | G54: 171 | H54: 45 | I54: 71 | J54: 77 | K54: 37 | L54: 140 | M54: 74 | N54: 38 | O54: 786 | P54: 05 min. 02,571 | Q54: 41 | R54: 07,380 sek.
C55: 48 | D55: Pilskalni | E55: 61 | F55: 80 | G55: 180 | H55: 20 | I55: 64 | J55: 83 | K55: 36 | L55: 141 | M55: 49 | N55: 61 | O55: 775 | P55: 06 min. 08,294 | Q55: 43 | R55: 08,565 sek.
C56: 49 | D56: Vilki | E56: 63 | F56: 100 | G56: 150 | H56: 45 | I56: 67 | J56: 94 | K56: 11 | L56: 108 | M56: 92 | N56: 38 | O56: 768 | P56: 06 min. 07,085 | Q56: 43 | R56: 08,537 sek.
C57: 50 | D57: Zeiļuki | E57: 55 | F57: 65 | G57: 188 | H57: 36 | I57: 94 | J57: 75 | K57: 14 | L57: 133 | M57: 69 | N57: 37 | O57: 766 | P57: 08 min. 34,946 | Q57: 45 | R57: 11,443 sek.
C58: 51 | D58: MūrniekiBurgeri | E58: 34 | F58: 82 | G58: 134 | H58: 100 | I58: 55 | J58: 71 | K58: 30 | L58: 130 | M58: 87 | N58: 36 | O58: 759 | P58: 09 min. 10,800 | Q58: 48 | R58: 11,475 sek.
C59: 52 | D59: Kleopīle un draugi | E59: 23 | F59: 32 | G59: 146 | H59: 40 | I59: 99 | J59: 84 | K59: 21 | L59: 166 | M59: 90 | N59: 58 | O59: 759 | P59: 07 min. 03,319 | Q59: 44 | R59: 09,621 sek.
C60: 53 | D60: Ilžuks | E60: 23 | F60: 61 | G60: 176 | H60: 65 | I60: 70 | J60: 100 | K60: -13 | L60: 137 | M60: 63 | N60: 64 | O60: 746 | P60: 04 min. 54,108 | Q60: 41 | R60: 07,173 sek.
C61: 54 | D61: B.A.Baracus | E61: 28 | F61: 86 | G61: 131 | H61: 81 | I61: 103 | J61: 99 | K61: -15 | L61: 134 | M61: 62 | N61: 34 | O61: 743 | P61: 08 min. 49,855 | Q61: 47 | R61: 11,274 sek.
C62: 55 | D62: Jampadracis - matracis | E62: 22 | F62: 97 | G62: 132 | H62: 62 | I62: 66 | J62: 93 | K62: 7 | L62: 118 | M62: 103 | N62: 33 | O62: 733 | P62: 05 min. 57,197 | Q62: 42 | R62: 08,505 sek.
C63: 56 | D63: Mēs minam! | E63: 43 | F63: 82 | G63: 177 | H63: 63 | I63: 65 | J63: 68 | K63: -18 | L63: 95 | M63: 90 | N63: 65 | O63: 730 | P63: 05 min. 45,187 | Q63: 41 | R63: 08,419 sek.
C64: 57 | D64: Kaķīšu komanda | E64: 68 | F64: 63 | G64: 108 | H64: 56 | I64: 70 | J64: 52 | K64: 37 | L64: 147 | M64: 71 | N64: 54 | O64: 726 | P64: 08 min. 33,347 | Q64: 44 | R64: 11,667 sek.
C65: 58 | D65: Ēzelītis I-Ā | E65: 40 | F65: 45 | G65: 125 | H65: 46 | I65: 54 | J65: 75 | K65: 57 | L65: 106 | M65: 60 | N65: 116 | O65: 724 | P65: 10 min. 15,045 | Q65: 47 | R65: 13,086 sek.
C66: 59 | D66: SIDRS | E66: 39 | F66: 68 | G66: 108 | H66: 39 | I66: 81 | J66: 86 | K66: 33 | L66: 137 | M66: 78 | N66: 47 | O66: 716 | P66: 08 min. 46,334 | Q66: 43 | R66: 12,240 sek.
C67: 60 | D67: Poldera ielas Republika | E67: 79 | F67: 103 | G67: 163 | H67: 19 | I67: 56 | J67: 43 | K67: 7 | L67: 117 | M67: 74 | N67: 53 | O67: 714 | P67: 06 min. 37,579 | Q67: 42 | R67: 09,466 sek.
C68: 61 | D68: Haizivis uzvalkos | E68: 24 | F68: 81 | G68: 77 | H68: 32 | I68: 55 | J68: 83 | K68: 68 | L68: 119 | M68: 88 | N68: 76 | O68: 703 | P68: 07 min. 59,792 | Q68: 44 | R68: 10,904 sek.
C69: 62 | D69: KejPī | E69: 39 | F69: 45 | G69: 175 | H69: 87 | I69: 44 | J69: 105 | K69: 1 | L69: 117 | M69: 46 | N69: 44 | O69: 703 | P69: 03 min. 04,161 | Q69: 36 | R69: 05,116 sek.
C70: 63 | D70: Madeira | E70: 80 | F70: 42 | G70: 129 | H70: 40 | I70: 64 | J70: 45 | K70: 32 | L70: 138 | M70: 36 | N70: 93 | O70: 699 | P70: 04 min. 41,476 | Q70: 37 | R70: 07,607 sek.
C71: 64 | D71: Rupucīši | E71: 51 | F71: 63 | G71: 125 | H71: 74 | I71: 62 | J71: 75 | K71: 7 | L71: 101 | M71: 79 | N71: 57 | O71: 694 | P71: 08 min. 06,824 | Q71: 41 | R71: 11,874 sek.
C72: 65 | D72: LaFamiliya | E72: 30 | F72: 69 | G72: 134 | H72: 35 | I72: 65 | J72: 73 | K72: 54 | L72: 128 | M72: 75 | N72: 30 | O72: 693 | P72: 07 min. 30,601 | Q72: 42 | R72: 10,729 sek.
C73: 66 | D73: LAPSA | E73: 57 | F73: 47 | G73: 108 | H73: 48 | I73: 81 | J73: 53 | K73: 37 | L73: 92 | M73: 82 | N73: 68 | O73: 673 | P73: 08 min. 21,509 | Q73: 41 | R73: 12,232 sek.
C74: 67 | D74: Lauvas | E74: 31 | F74: 76 | G74: 183 | H74: 39 | I74: 85 | J74: 93 | K74: -39 | L74: 122 | M74: 21 | N74: 56 | O74: 667 | P74: 06 min. 16,124 | Q74: 39 | R74: 09,644 sek.
C75: 68 | D75: Balandas | E75: 12 | F75: 60 | G75: 128 | H75: 67 | I75: 68 | J75: 103 | K75: -23 | L75: 109 | M75: 12 | N75: 82 | O75: 618 | P75: 04 min. 09,645 | Q75: 33 | R75: 07,565 sek.
C76: 69 | D76: Close enough | E76: 0 | F76: 0 | G76: 0 | H76: 55 | I76: 110 | J76: 91 | K76: 25 | L76: 161 | M76: 129 | N76: 45 | O76: 616 | P76: 04 min. 50,072 | Q76: 32 | R76: 09,065 sek.
C77: 70 | D77: Žoga vāveres | E77: 29 | F77: 21 | G77: 162 | H77: 44 | I77: 64 | J77: 60 | K77: -24 | L77: 87 | M77: 57 | N77: 112 | O77: 612 | P77: 06 min. 53,869 | Q77: 38 | R77: 10,891 sek.
C78: 71 | D78: Burundux | E78: 0 | F78: 0 | G78: 110 | H78: 74 | I78: 91 | J78: 65 | K78: -5 | L78: 104 | M78: 141 | N78: 31 | O78: 611 | P78: 04 min. 18,401 | Q78: 33 | R78: 07,830 sek.
C79: 72 | D79: Končas | E79: 29 | F79: 76 | G79: 125 | H79: 18 | I79: 66 | J79: 63 | K79: 15 | L79: 119 | M79: 38 | N79: 58 | O79: 607 | P79: 05 min. 18,074 | Q79: 36 | R79: 08,835 sek.
C80: 73 | D80: Liiiii | E80: 29 | F80: 63 | G80: 132 | H80: 54 | I80: 62 | J80: 57 | K80: 12 | L80: 101 | M80: 65 | N80: 31 | O80: 606 | P80: 05 min. 38,692 | Q80: 34 | R80: 09,962 sek.
C81: 74 | D81: PIPARI | E81: 52 | F81: 21 | G81: 128 | H81: 45 | I81: 91 | J81: 51 | K81: -28 | L81: 95 | M81: 97 | N81: 35 | O81: 587 | P81: 03 min. 46,969 | Q81: 31 | R81: 07,322 sek.
C82: 75 | D82: Stams | E82: 46 | F82: 81 | G82: 137 | H82: 52 | I82: 64 | J82: 33 | K82: 14 | L82: 80 | M82: 39 | N82: 39 | O82: 585 | P82: 06 min. 43,427 | Q82: 36 | R82: 11,206 sek.
C83: 76 | D83: Sniega nav | E83: 51 | F83: 93 | G83: 118 | H83: 56 | I83: 67 | J83: 69 | K83: -62 | L83: 90 | M83: 76 | N83: 23 | O83: 581 | P83: 06 min. 39,936 | Q83: 38 | R83: 10,525 sek.
C84: 77 | D84: Skolas iela | E84: 11 | F84: 76 | G84: 149 | H84: 42 | I84: 62 | J84: 51 | K84: -21 | L84: 68 | M84: 59 | N84: 74 | O84: 571 | P84: 05 min. 58,331 | Q84: 35 | R84: 10,238 sek.
C85: 78 | D85: Pērļainie trīnīši | E85: 58 | F85: 45 | G85: 143 | H85: 39 | I85: 87 | J85: 63 | K85: -34 | L85: 24 | M85: 57 | N85: 56 | O85: 538 | P85: 05 min. 16,549 | Q85: 34 | R85: 09,310 sek.
C86: 79 | D86: Stendes | E86: 19 | F86: 33 | G86: 144 | H86: 57 | I86: 65 | J86: 52 | K86: -10 | L86: 91 | M86: 65 | N86: 16 | O86: 532 | P86: 07 min. 50,529 | Q86: 37 | R86: 12,717 sek.
C87: 80 | D87: Rūķīši un Eglīte | E87: 36 | F87: 45 | G87: 150 | H87: 30 | I87: 59 | J87: 29 | K87: -14 | L87: 68 | M87: 71 | N87: 48 | O87: 522 | P87: 05 min. 23,756 | Q87: 32 | R87: 10,117 sek.
C88: 81 | D88: Toms un Džerijs | E88: 22 | F88: 51 | G88: 113 | H88: 0 | I88: 64 | J88: 21 | K88: 47 | L88: 105 | M88: 33 | N88: 40 | O88: 496 | P88: 04 min. 48,383 | Q88: 29 | R88: 09,944 sek.
C89: 82 | D89: Ciruliši | E89: 0 | F89: 17 | G89: 112 | H89: 0 | I89: 71 | J89: 65 | K89: 67 | L89: 89 | M89: 30 | N89: 31 | O89: 482 | P89: 03 min. 52,236 | Q89: 27 | R89: 08,601 sek.
C90: 83 | D90: Mikijs | E90: 0 | F90: 0 | G90: 0 | H90: 0 | I90: 0 | J90: 0 | K90: 4 | L90: 129 | M90: 58 | N90: 17 | O90: 208 | P90: 04 min. 10,717 | Q90: 15 | R90: 16,714 sek.

Sheet 1-50
C2: =tabula!C2 -> "Ziemassvētku filmu viktorīna" (tiešsaistē / vebinārā) | 2024.gada 26.decembris
B3: Grupa | C3: # | D3: Dalībnieks | Raunds | Tēma | E3: 1 | F3: 2 | G3: 3 | H3: 4 | I3: 5 | J3: 6 | K3: 7 | L3: 8 | M3: 9 | N3: 10 | O3: KOPĀ | P3: Laiks kopā uz pareizajām atbildēm | Q3: Pareizās atbildes (max) | R3: Vid.laiks uz 1 pareizo atb.
E4: =tabula!E4 -> Pavediens | F4: =tabula!F4 -> Video | G4: =tabula!G4 -> Ekspresis | H4: =tabula!H4 -> Vizuālais | I4: =tabula!I4 -> Citāti | J4: =tabula!J4 -> Galvenie varoņi (kolāži) | K4: =tabula!K4 -> Risks: animācijas filmas | L4: =tabula!L4 -> Kas kopīgs? | M4: =tabula!M4 -> Liekais pazūd: lokācijas | N4: =tabula!N4 -> Audio
D5: Max punkti raundā (bez bonusiem) | E5: =tabula!E5 -> 150 | F5: =tabula!F5 -> 150 | G5: =tabula!G5 -> 240 | H5: =tabula!H5 -> 150 | I5: =tabula!I5 -> 150 | J5: =tabula!J5 -> 150 | K5: =tabula!K5 -> 120 | L5: =tabula!L5 -> 180 | M5: =tabula!M5 -> 150 | N5: =tabula!N5 -> 150 | O5: =tabula!O5 -> 1590
C6: Jautājumi | E6: =tabula!E6 -> 6 | F6: =tabula!F6 -> 6 | G6: =tabula!G6 -> 12 | H6: =tabula!H6 -> 6 | I6: =tabula!I6 -> 6 | J6: =tabula!J6 -> 6 | K6: =tabula!K6 -> 6 | L6: =tabula!L6 -> 7 | M6: =tabula!M6 -> 6 | N6: =tabula!N6 -> 6 | Q6: =SUM(E6:N6) -> 67
D7: Vidējie rādītāji | E7: =tabula!E7 -> 52.8 | F7: =tabula!F7 -> 79.3 | G7: =tabula!G7 -> 146.6 | H7: =tabula!H7 -> 65.2 | I7: =tabula!I7 -> 82.9 | J7: =tabula!J7 -> 83.3 | K7: =tabula!K7 -> 33.3 | L7: =tabula!L7 -> 131.3 | M7: =tabula!M7 -> 85.8 | N7: =tabula!N7 -> 65.2 | O7: =tabula!O7 -> 825.8 | P7: =tabula!P7 -> - | Q7: =tabula!Q7 -> 45.8 | R7: =tabula!R7 -> -
B8: 3 | C8: =tabula!C8 -> 1 | D8: =tabula!D8 -> nezinu | E8: =tabula!E8 -> 82 | F8: =tabula!F8 -> 104 | G8: =tabula!G8 -> 185 | H8: =tabula!H8 -> 110 | I8: =tabula!I8 -> 103 | J8: =tabula!J8 -> 120 | K8: =tabula!K8 -> 81 | L8: =tabula!L8 -> 148 | M8: =tabula!M8 -> 127 | N8: =tabula!N8 -> 96 | O8: =tabula!O8 -> 1156 | P8: =tabula!P8 -> 09 min. 05,913 | Q8: =tabula!Q8 -> 61 | R8: =tabula!R8 -> 08,949 sek.
B9: 1 | C9: =tabula!C9 -> 2 | D9: =tabula!D9 -> Shakin’ Stevens | E9: =tabula!E9 -> 61 | F9: =tabula!F9 -> 137 | G9: =tabula!G9 -> 184 | H9: =tabula!H9 -> 110 | I9: =tabula!I9 -> 108 | J9: =tabula!J9 -> 135 | K9: =tabula!K9 -> 70 | L9: =tabula!L9 -> 154 | M9: =tabula!M9 -> 101 | N9: =tabula!N9 -> 76 | O9: =tabula!O9 -> 1136 | P9: =tabula!P9 -> 06 min. 33,964 | Q9: =tabula!Q9 -> 57 | R9: =tabula!R9 -> 06,912 sek.
B10: 1 | C10: =tabula!C10 -> 3 | D10: =tabula!D10 -> HektoraFamilija | E10: =tabula!E10 -> 73 | F10: =tabula!F10 -> 96 | G10: =tabula!G10 -> 200 | H10: =tabula!H10 -> 86 | I10: =tabula!I10 -> 110 | J10: =tabula!J10 -> 112 | K10: =tabula!K10 -> 73 | L10: =tabula!L10 -> 160 | M10: =tabula!M10 -> 144 | N10: =tabula!N10 -> 79 | O10: =tabula!O10 -> 1133 | P10: =tabula!P10 -> 06 min. 23,972 | Q10: =tabula!Q10 -> 56 | R10: =tabula!R10 -> 06,857 sek.
B11: 3 | C11: =tabula!C11 -> 4 | D11: =tabula!D11 -> ROGAS LIEPZAROS | E11: =tabula!E11 -> 82 | F11: =tabula!F11 -> 132 | G11: =tabula!G11 -> 158 | H11: =tabula!H11 -> 90 | I11: =tabula!I11 -> 100 | J11: =tabula!J11 -> 116 | K11: =tabula!K11 -> 100 | L11: =tabula!L11 -> 170 | M11: =tabula!M11 -> 102 | N11: =tabula!N11 -> 78 | O11: =tabula!O11 -> 1128 | P11: =tabula!P11 -> 07 min. 25,348 | Q11: =tabula!Q11 -> 59 | R11: =tabula!R11 -> 07,548 sek.
B12: 1 | C12: =tabula!C12 -> 5 | D12: =tabula!D12 -> Attīstībai/Pret | E12: =tabula!E12 -> 65 | F12: =tabula!F12 -> 103 | G12: =tabula!G12 -> 161 | H12: =tabula!H12 -> 121 | I12: =tabula!I12 -> 94 | J12: =tabula!J12 -> 113 | K12: =tabula!K12 -> 96 | L12: =tabula!L12 -> 161 | M12: =tabula!M12 -> 119 | N12: =tabula!N12 -> 85 | O12: =tabula!O12 -> 1118 | P12: =tabula!P12 -> 06 min. 05,670 | Q12: =tabula!Q12 -> 56 | R12: =tabula!R12 -> 06,530 sek.
B13: 3 | C13: =tabula!C13 -> 6 | D13: =tabula!D13 -> ttomstt | E13: =tabula!E13 -> 63 | F13: =tabula!F13 -> 123 | G13: =tabula!G13 -> 174 | H13: =tabula!H13 -> 107 | I13: =tabula!I13 -> 113 | J13: =tabula!J13 -> 108 | K13: =tabula!K13 -> 58 | L13: =tabula!L13 -> 176 | M13: =tabula!M13 -> 78 | N13: =tabula!N13 -> 108 | O13: =tabula!O13 -> 1108 | P13: =tabula!P13 -> 08 min. 25,299 | Q13: =tabula!Q13 -> 59 | R13: =tabula!R13 -> 08,564 sek.
B14: 1 | C14: =tabula!C14 -> 7 | D14: =tabula!D14 -> Ļoti labi | E14: =tabula!E14 -> 97 | F14: =tabula!F14 -> 121 | G14: =tabula!G14 -> 152 | H14: =tabula!H14 -> 64 | I14: =tabula!I14 -> 126 | J14: =tabula!J14 -> 77 | K14: =tabula!K14 -> 80 | L14: =tabula!L14 -> 145 | M14: =tabula!M14 -> 134 | N14: =tabula!N14 -> 106 | O14: =tabula!O14 -> 1102 | P14: =tabula!P14 -> 07 min. 44,965 | Q14: =tabula!Q14 -> 58 | R14: =tabula!R14 -> 08,017 sek.
B15: 1 | C15: =tabula!C15 -> 8 | D15: =tabula!D15 -> Mīluļu slepenā dzīve | E15: =tabula!E15 -> 62 | F15: =tabula!F15 -> 123 | G15: =tabula!G15 -> 190 | H15: =tabula!H15 -> 116 | I15: =tabula!I15 -> 69 | J15: =tabula!J15 -> 91 | K15: =tabula!K15 -> 78 | L15: =tabula!L15 -> 160 | M15: =tabula!M15 -> 145 | N15: =tabula!N15 -> 65 | O15: =tabula!O15 -> 1099 | P15: =tabula!P15 -> 06 min. 27,466 | Q15: =tabula!Q15 -> 55 | R15: =tabula!R15 -> 07,045 sek.
B16: 2 | C16: =tabula!C16 -> 9 | D16: =tabula!D16 -> lielmezi.lv | E16: =tabula!E16 -> 80 | F16: =tabula!F16 -> 113 | G16: =tabula!G16 -> 171 | H16: =tabula!H16 -> 107 | I16: =tabula!I16 -> 114 | J16: =tabula!J16 -> 85 | K16: =tabula!K16 -> 52 | L16: =tabula!L16 -> 169 | M16: =tabula!M16 -> 94 | N16: =tabula!N16 -> 99 | O16: =tabula!O16 -> 1084 | P16: =tabula!P16 -> 08 min. 25,668 | Q16: =tabula!Q16 -> 58 | R16: =tabula!R16 -> 08,718 sek.
B17: 3 | C17: =tabula!C17 -> 10 | D17: =tabula!D17 -> Te tikai Dieviņš palīdzēs | E17: =tabula!E17 -> 77 | F17: =tabula!F17 -> 101 | G17: =tabula!G17 -> 165 | H17: =tabula!H17 -> 77 | I17: =tabula!I17 -> 112 | J17: =tabula!J17 -> 106 | K17: =tabula!K17 -> 85 | L17: =tabula!L17 -> 139 | M17: =tabula!M17 -> 105 | N17: =tabula!N17 -> 114 | O17: =tabula!O17 -> 1081 | P17: =tabula!P17 -> 09 min. 32,297 | Q17: =tabula!Q17 -> 60 | R17: =tabula!R17 -> 09,538 sek.
B18: 2 | C18: =tabula!C18 -> 11 | D18: =tabula!D18 -> Neļķu iela | E18: =tabula!E18 -> 83 | F18: =tabula!F18 -> 71 | G18: =tabula!G18 -> 156 | H18: =tabula!H18 -> 87 | I18: =tabula!I18 -> 118 | J18: =tabula!J18 -> 117 | K18: =tabula!K18 -> 93 | L18: =tabula!L18 -> 164 | M18: =tabula!M18 -> 128 | N18: =tabula!N18 -> 63 | O18: =tabula!O18 -> 1080 | P18: =tabula!P18 -> 06 min. 36,186 | Q18: =tabula!Q18 -> 55 | R18: =tabula!R18 -> 07,203 sek.
B19: 2 | C19: =tabula!C19 -> 12 | D19: =tabula!D19 -> Inspektors ieskandina ritmā | E19: =tabula!E19 -> 64 | F19: =tabula!F19 -> 95 | G19: =tabula!G19 -> 147 | H19: =tabula!H19 -> 114 | I19: =tabula!I19 -> 95 | J19: =tabula!J19 -> 99 | K19: =tabula!K19 -> 104 | L19: =tabula!L19 -> 149 | M19: =tabula!M19 -> 103 | N19: =tabula!N19 -> 94 | O19: =tabula!O19 -> 1064 | P19: =tabula!P19 -> 08 min. 07,828 | Q19: =tabula!Q19 -> 57 | R19: =tabula!R19 -> 08,558 sek.
B20: 2 | C20: =tabula!C20 -> 13 | D20: =tabula!D20 -> Pīters Penis | E20: =tabula!E20 -> 105 | F20: =tabula!F20 -> 100 | G20: =tabula!G20 -> 197 | H20: =tabula!H20 -> 99 | I20: =tabula!I20 -> 87 | J20: =tabula!J20 -> 93 | K20: =tabula!K20 -> 25 | L20: =tabula!L20 -> 137 | M20: =tabula!M20 -> 148 | N20: =tabula!N20 -> 72 | O20: =tabula!O20 -> 1063 | P20: =tabula!P20 -> 05 min. 56,503 | Q20: =tabula!Q20 -> 54 | R20: =tabula!R20 -> 06,602 sek.
B21: 3 | C21: =tabula!C21 -> 14 | D21: =tabula!D21 -> Sindija DJV | E21: =tabula!E21 -> 30 | F21: =tabula!F21 -> 102 | G21: =tabula!G21 -> 201 | H21: =tabula!H21 -> 65 | I21: =tabula!I21 -> 92 | J21: =tabula!J21 -> 124 | K21: =tabula!K21 -> 62 | L21: =tabula!L21 -> 157 | M21: =tabula!M21 -> 150 | N21: =tabula!N21 -> 61 | O21: =tabula!O21 -> 1044 | P21: =tabula!P21 -> 04 min. 43,609 | Q21: =tabula!Q21 -> 51 | R21: =tabula!R21 -> 05,561 sek.
B22: 1 | C22: =tabula!C22 -> 15 | D22: =tabula!D22 -> PAGASTMĀJA | E22: =tabula!E22 -> 90 | F22: =tabula!F22 -> 134 | G22: =tabula!G22 -> 137 | H22: =tabula!H22 -> 94 | I22: =tabula!I22 -> 105 | J22: =tabula!J22 -> 70 | K22: =tabula!K22 -> 74 | L22: =tabula!L22 -> 145 | M22: =tabula!M22 -> 110 | N22: =tabula!N22 -> 84 | O22: =tabula!O22 -> 1043 | P22: =tabula!P22 -> 06 min. 21,359 | Q22: =tabula!Q22 -> 54 | R22: =tabula!R22 -> 07,062 sek.
B23: 3 | C23: =tabula!C23 -> 16 | D23: =tabula!D23 -> Mada_for_president | E23: =tabula!E23 -> 77 | F23: =tabula!F23 -> 130 | G23: =tabula!G23 -> 189 | H23: =tabula!H23 -> 76 | I23: =tabula!I23 -> 116 | J23: =tabula!J23 -> 106 | K23: =tabula!K23 -> 51 | L23: =tabula!L23 -> 137 | M23: =tabula!M23 -> 74 | N23: =tabula!N23 -> 77 | O23: =tabula!O23 -> 1033 | P23: =tabula!P23 -> 07 min. 35,540 | Q23: =tabula!Q23 -> 55 | R23: =tabula!R23 -> 08,283 sek.
B24: 3 | C24: =tabula!C24 -> 17 | D24: =tabula!D24 -> Pelēkie zirņi | E24: =tabula!E24 -> 91 | F24: =tabula!F24 -> 103 | G24: =tabula!G24 -> 216 | H24: =tabula!H24 -> 47 | I24: =tabula!I24 -> 88 | J24: =tabula!J24 -> 114 | K24: =tabula!K24 -> 50 | L24: =tabula!L24 -> 139 | M24: =tabula!M24 -> 124 | N24: =tabula!N24 -> 59 | O24: =tabula!O24 -> 1031 | P24: =tabula!P24 -> 04 min. 31,850 | Q24: =tabula!Q24 -> 51 | R24: =tabula!R24 -> 05,330 sek.
B25: 3 | C25: =tabula!C25 -> 18 | D25: =tabula!D25 -> Pringļu Egle | E25: =tabula!E25 -> 64 | F25: =tabula!F25 -> 134 | G25: =tabula!G25 -> 156 | H25: =tabula!H25 -> 102 | I25: =tabula!I25 -> 80 | J25: =tabula!J25 -> 96 | K25: =tabula!K25 -> 40 | L25: =tabula!L25 -> 158 | M25: =tabula!M25 -> 93 | N25: =tabula!N25 -> 99 | O25: =tabula!O25 -> 1022 | P25: =tabula!P25 -> 07 min. 19,108 | Q25: =tabula!Q25 -> 55 | R25: =tabula!R25 -> 07,984 sek.
B26: 1 | C26: =tabula!C26 -> 19 | D26: =tabula!D26 -> Kas neriskē,nedzer šampanieti | E26: =tabula!E26 -> 77 | F26: =tabula!F26 -> 91 | G26: =tabula!G26 -> 139 | H26: =tabula!H26 -> 124 | I26: =tabula!I26 -> 109 | J26: =tabula!J26 -> 79 | K26: =tabula!K26 -> 36 | L26: =tabula!L26 -> 143 | M26: =tabula!M26 -> 108 | N26: =tabula!N26 -> 107 | O26: =tabula!O26 -> 1013 | P26: =tabula!P26 -> 08 min. 24,725 | Q26: =tabula!Q26 -> 55 | R26: =tabula!R26 -> 09,177 sek.
B27: 1 | C27: =tabula!C27 -> 20 | D27: =tabula!D27 -> Rupuči, turās ārzemēs!!! | E27: =tabula!E27 -> 66 | F27: =tabula!F27 -> 107 | G27: =tabula!G27 -> 189 | H27: =tabula!H27 -> 81 | I27: =tabula!I27 -> 107 | J27: =tabula!J27 -> 95 | K27: =tabula!K27 -> 36 | L27: =tabula!L27 -> 124 | M27: =tabula!M27 -> 98 | N27: =tabula!N27 -> 80 | O27: =tabula!O27 -> 983 | P27: =tabula!P27 -> 05 min. 12,408 | Q27: =tabula!Q27 -> 50 | R27: =tabula!R27 -> 06,248 sek.
B28: 3 | C28: =tabula!C28 -> 21 | D28: =tabula!D28 -> Gaiļi | E28: =tabula!E28 -> 65 | F28: =tabula!F28 -> 118 | G28: =tabula!G28 -> 146 | H28: =tabula!H28 -> 66 | I28: =tabula!I28 -> 93 | J28: =tabula!J28 -> 98 | K28: =tabula!K28 -> 45 | L28: =tabula!L28 -> 147 | M28: =tabula!M28 -> 129 | N28: =tabula!N28 -> 69 | O28: =tabula!O28 -> 976 | P28: =tabula!P28 -> 07 min. 47,345 | Q28: =tabula!Q28 -> 55 | R28: =tabula!R28 -> 08,497 sek.
C29: =tabula!C29 -> 22 | D29: =tabula!D29 -> PAKO6 | E29: =tabula!E29 -> 63 | F29: =tabula!F29 -> 87 | G29: =tabula!G29 -> 146 | H29: =tabula!H29 -> 64 | I29: =tabula!I29 -> 111 | J29: =tabula!J29 -> 91 | K29: =tabula!K29 -> 76 | L29: =tabula!L29 -> 160 | M29: =tabula!M29 -> 75 | N29: =tabula!N29 -> 98 | O29: =tabula!O29 -> 971 | P29: =tabula!P29 -> 10 min. 58,112 | Q29: =tabula!Q29 -> 58 | R29: =tabula!R29 -> 11,347 sek.
C30: =tabula!C30 -> 23 | D30: =tabula!D30 -> Garie | E30: =tabula!E30 -> 52 | F30: =tabula!F30 -> 89 | G30: =tabula!G30 -> 144 | H30: =tabula!H30 -> 84 | I30: =tabula!I30 -> 81 | J30: =tabula!J30 -> 114 | K30: =tabula!K30 -> 63 | L30: =tabula!L30 -> 144 | M30: =tabula!M30 -> 115 | N30: =tabula!N30 -> 67 | O30: =tabula!O30 -> 953 | P30: =tabula!P30 -> 06 min. 28,316 | Q30: =tabula!Q30 -> 49 | R30: =tabula!R30 -> 07,925 sek.
C31: =tabula!C31 -> 24 | D31: =tabula!D31 -> Saies | E31: =tabula!E31 -> 76 | F31: =tabula!F31 -> 104 | G31: =tabula!G31 -> 166 | H31: =tabula!H31 -> 105 | I31: =tabula!I31 -> 94 | J31: =tabula!J31 -> 109 | K31: =tabula!K31 -> 13 | L31: =tabula!L31 -> 119 | M31: =tabula!M31 -> 110 | N31: =tabula!N31 -> 56 | O31: =tabula!O31 -> 952 | P31: =tabula!P31 -> 07 min. 09,792 | Q31: =tabula!Q31 -> 52 | R31: =tabula!R31 -> 08,265 sek.
C32: =tabula!C32 -> 25 | D32: =tabula!D32 -> Salenieki | E32: =tabula!E32 -> 76 | F32: =tabula!F32 -> 85 | G32: =tabula!G32 -> 110 | H32: =tabula!H32 -> 108 | I32: =tabula!I32 -> 101 | J32: =tabula!J32 -> 89 | K32: =tabula!K32 -> 75 | L32: =tabula!L32 -> 165 | M32: =tabula!M32 -> 84 | N32: =tabula!N32 -> 58 | O32: =tabula!O32 -> 951 | P32: =tabula!P32 -> 07 min. 55,384 | Q32: =tabula!Q32 -> 53 | R32: =tabula!R32 -> 08,970 sek.
C33: =tabula!C33 -> 26 | D33: =tabula!D33 -> Petūnijas | E33: =tabula!E33 -> 90 | F33: =tabula!F33 -> 92 | G33: =tabula!G33 -> 160 | H33: =tabula!H33 -> 68 | I33: =tabula!I33 -> 90 | J33: =tabula!J33 -> 104 | K33: =tabula!K33 -> 7 | L33: =tabula!L33 -> 144 | M33: =tabula!M33 -> 85 | N33: =tabula!N33 -> 107 | O33: =tabula!O33 -> 947 | P33: =tabula!P33 -> 05 min. 18,837 | Q33: =tabula!Q33 -> 49 | R33: =tabula!R33 -> 06,507 sek.
C34: =tabula!C34 -> 27 | D34: =tabula!D34 -> Džeinas jampadracis | E34: =tabula!E34 -> 27 | F34: =tabula!F34 -> 90 | G34: =tabula!G34 -> 132 | H34: =tabula!H34 -> 85 | I34: =tabula!I34 -> 110 | J34: =tabula!J34 -> 111 | K34: =tabula!K34 -> 71 | L34: =tabula!L34 -> 148 | M34: =tabula!M34 -> 82 | N34: =tabula!N34 -> 91 | O34: =tabula!O34 -> 947 | P34: =tabula!P34 -> 04 min. 08,865 | Q34: =tabula!Q34 -> 46 | R34: =tabula!R34 -> 05,410 sek.
C35: =tabula!C35 -> 28 | D35: =tabula!D35 -> Suņu dienas | E35: =tabula!E35 -> 56 | F35: =tabula!F35 -> 125 | G35: =tabula!G35 -> 133 | H35: =tabula!H35 -> 89 | I35: =tabula!I35 -> 67 | J35: =tabula!J35 -> 102 | K35: =tabula!K35 -> -4 | L35: =tabula!L35 -> 154 | M35: =tabula!M35 -> 126 | N35: =tabula!N35 -> 86 | O35: =tabula!O35 -> 934 | P35: =tabula!P35 -> 07 min. 44,305 | Q35: =tabula!Q35 -> 50 | R35: =tabula!R35 -> 09,286 sek.
C36: =tabula!C36 -> 29 | D36: =tabula!D36 -> MELDRI | E36: =tabula!E36 -> 56 | F36: =tabula!F36 -> 73 | G36: =tabula!G36 -> 112 | H36: =tabula!H36 -> 84 | I36: =tabula!I36 -> 115 | J36: =tabula!J36 -> 79 | K36: =tabula!K36 -> 84 | L36: =tabula!L36 -> 151 | M36: =tabula!M36 -> 72 | N36: =tabula!N36 -> 107 | O36: =tabula!O36 -> 933 | P36: =tabula!P36 -> 11 min. 17,482 | Q36: =tabula!Q36 -> 55 | R36: =tabula!R36 -> 12,318 sek.
C37: =tabula!C37 -> 30 | D37: =tabula!D37 -> Žiperi | E37: =tabula!E37 -> 83 | F37: =tabula!F37 -> 97 | G37: =tabula!G37 -> 172 | H37: =tabula!H37 -> 48 | I37: =tabula!I37 -> 90 | J37: =tabula!J37 -> 118 | K37: =tabula!K37 -> 20 | L37: =tabula!L37 -> 168 | M37: =tabula!M37 -> 92 | N37: =tabula!N37 -> 39 | O37: =tabula!O37 -> 927 | P37: =tabula!P37 -> 04 min. 54,264 | Q37: =tabula!Q37 -> 47 | R37: =tabula!R37 -> 06,261 sek.
C38: =tabula!C38 -> 31 | D38: =tabula!D38 -> Mikrene | E38: =tabula!E38 -> 52 | F38: =tabula!F38 -> 99 | G38: =tabula!G38 -> 126 | H38: =tabula!H38 -> 106 | I38: =tabula!I38 -> 85 | J38: =tabula!J38 -> 118 | K38: =tabula!K38 -> 51 | L38: =tabula!L38 -> 118 | M38: =tabula!M38 -> 82 | N38: =tabula!N38 -> 66 | O38: =tabula!O38 -> 903 | P38: =tabula!P38 -> 07 min. 31,426 | Q38: =tabula!Q38 -> 50 | R38: =tabula!R38 -> 09,029 sek.
C39: =tabula!C39 -> 32 | D39: =tabula!D39 -> Dusmīgie Bebri | E39: =tabula!E39 -> 75 | F39: =tabula!F39 -> 66 | G39: =tabula!G39 -> 152 | H39: =tabula!H39 -> 73 | I39: =tabula!I39 -> 91 | J39: =tabula!J39 -> 91 | K39: =tabula!K39 -> 10 | L39: =tabula!L39 -> 165 | M39: =tabula!M39 -> 94 | N39: =tabula!N39 -> 79 | O39: =tabula!O39 -> 896 | P39: =tabula!P39 -> 07 min. 57,966 | Q39: =tabula!Q39 -> 51 | R39: =tabula!R39 -> 09,372 sek.
C40: =tabula!C40 -> 33 | D40: =tabula!D40 -> viens ar pus aliņš | E40: =tabula!E40 -> 25 | F40: =tabula!F40 -> 65 | G40: =tabula!G40 -> 195 | H40: =tabula!H40 -> 67 | I40: =tabula!I40 -> 113 | J40: =tabula!J40 -> 85 | K40: =tabula!K40 -> 42 | L40: =tabula!L40 -> 136 | M40: =tabula!M40 -> 89 | N40: =tabula!N40 -> 77 | O40: =tabula!O40 -> 894 | P40: =tabula!P40 -> 06 min. 50,908 | Q40: =tabula!Q40 -> 48 | R40: =tabula!R40 -> 08,561 sek.
C41: =tabula!C41 -> 34 | D41: =tabula!D41 -> Stāmerienas buljons | E41: =tabula!E41 -> 69 | F41: =tabula!F41 -> 96 | G41: =tabula!G41 -> 99 | H41: =tabula!H41 -> 65 | I41: =tabula!I41 -> 91 | J41: =tabula!J41 -> 88 | K41: =tabula!K41 -> 81 | L41: =tabula!L41 -> 141 | M41: =tabula!M41 -> 80 | N41: =tabula!N41 -> 82 | O41: =tabula!O41 -> 892 | P41: =tabula!P41 -> 10 min. 13,849 | Q41: =tabula!Q41 -> 54 | R41: =tabula!R41 -> 11,368 sek.
C42: =tabula!C42 -> 35 | D42: =tabula!D42 -> Gailis viesturs | E42: =tabula!E42 -> 67 | F42: =tabula!F42 -> 89 | G42: =tabula!G42 -> 137 | H42: =tabula!H42 -> 59 | I42: =tabula!I42 -> 98 | J42: =tabula!J42 -> 96 | K42: =tabula!K42 -> 58 | L42: =tabula!L42 -> 144 | M42: =tabula!M42 -> 67 | N42: =tabula!N42 -> 66 | O42: =tabula!O42 -> 881 | P42: =tabula!P42 -> 07 min. 42,471 | Q42: =tabula!Q42 -> 50 | R42: =tabula!R42 -> 09,249 sek.
C43: =tabula!C43 -> 36 | D43: =tabula!D43 -> Prezidenta radinieki | E43: =tabula!E43 -> 43 | F43: =tabula!F43 -> 71 | G43: =tabula!G43 -> 140 | H43: =tabula!H43 -> 74 | I43: =tabula!I43 -> 87 | J43: =tabula!J43 -> 94 | K43: =tabula!K43 -> 55 | L43: =tabula!L43 -> 113 | M43: =tabula!M43 -> 98 | N43: =tabula!N43 -> 100 | O43: =tabula!O43 -> 875 | P43: =tabula!P43 -> 12 min. 46,636 | Q43: =tabula!Q43 -> 57 | R43: =tabula!R43 -> 13,450 sek.
C44: =tabula!C44 -> 37 | D44: =tabula!D44 -> Speķis | E44: =tabula!E44 -> 68 | F44: =tabula!F44 -> 67 | G44: =tabula!G44 -> 177 | H44: =tabula!H44 -> 52 | I44: =tabula!I44 -> 96 | J44: =tabula!J44 -> 75 | K44: =tabula!K44 -> 64 | L44: =tabula!L44 -> 166 | M44: =tabula!M44 -> 61 | N44: =tabula!N44 -> 46 | O44: =tabula!O44 -> 872 | P44: =tabula!P44 -> 06 min. 01,768 | Q44: =tabula!Q44 -> 46 | R44: =tabula!R44 -> 07,865 sek.
C45: =tabula!C45 -> 38 | D45: =tabula!D45 -> Emsy | E45: =tabula!E45 -> 64 | F45: =tabula!F45 -> 66 | G45: =tabula!G45 -> 178 | H45: =tabula!H45 -> 64 | I45: =tabula!I45 -> 113 | J45: =tabula!J45 -> 61 | K45: =tabula!K45 -> 23 | L45: =tabula!L45 -> 115 | M45: =tabula!M45 -> 104 | N45: =tabula!N45 -> 46 | O45: =tabula!O45 -> 834 | P45: =tabula!P45 -> 05 min. 27,809 | Q45: =tabula!Q45 -> 45 | R45: =tabula!R45 -> 07,285 sek.
C46: =tabula!C46 -> 39 | D46: =tabula!D46 -> Skatāmies citas filmas | E46: =tabula!E46 -> 50 | F46: =tabula!F46 -> 58 | G46: =tabula!G46 -> 109 | H46: =tabula!H46 -> 42 | I46: =tabula!I46 -> 71 | J46: =tabula!J46 -> 86 | K46: =tabula!K46 -> 54 | L46: =tabula!L46 -> 157 | M46: =tabula!M46 -> 99 | N46: =tabula!N46 -> 94 | O46: =tabula!O46 -> 820 | P46: =tabula!P46 -> 08 min. 38,926 | Q46: =tabula!Q46 -> 48 | R46: =tabula!R46 -> 10,811 sek.
C47: =tabula!C47 -> 40 | D47: =tabula!D47 -> Ziemassvētku rūķi | E47: =tabula!E47 -> 63 | F47: =tabula!F47 -> 100 | G47: =tabula!G47 -> 179 | H47: =tabula!H47 -> 60 | I47: =tabula!I47 -> 68 | J47: =tabula!J47 -> 47 | K47: =tabula!K47 -> 62 | L47: =tabula!L47 -> 96 | M47: =tabula!M47 -> 78 | N47: =tabula!N47 -> 63 | O47: =tabula!O47 -> 816 | P47: =tabula!P47 -> 04 min. 26,816 | Q47: =tabula!Q47 -> 41 | R47: =tabula!R47 -> 06,508 sek.
C48: =tabula!C48 -> 41 | D48: =tabula!D48 -> Swan | E48: =tabula!E48 -> 68 | F48: =tabula!F48 -> 89 | G48: =tabula!G48 -> 150 | H48: =tabula!H48 -> 80 | I48: =tabula!I48 -> 45 | J48: =tabula!J48 -> 83 | K48: =tabula!K48 -> 10 | L48: =tabula!L48 -> 161 | M48: =tabula!M48 -> 65 | N48: =tabula!N48 -> 63 | O48: =tabula!O48 -> 814 | P48: =tabula!P48 -> 07 min. 43,258 | Q48: =tabula!Q48 -> 47 | R48: =tabula!R48 -> 09,857 sek.
C49: =tabula!C49 -> 42 | D49: =tabula!D49 -> Pūces | E49: =tabula!E49 -> 55 | F49: =tabula!F49 -> 86 | G49: =tabula!G49 -> 114 | H49: =tabula!H49 -> 37 | I49: =tabula!I49 -> 83 | J49: =tabula!J49 -> 114 | K49: =tabula!K49 -> 32 | L49: =tabula!L49 -> 135 | M49: =tabula!M49 -> 79 | N49: =tabula!N49 -> 78 | O49: =tabula!O49 -> 813 | P49: =tabula!P49 -> 07 min. 52,705 | Q49: =tabula!Q49 -> 46 | R49: =tabula!R49 -> 10,276 sek.
C50: =tabula!C50 -> 43 | D50: =tabula!D50 -> BīPī | E50: =tabula!E50 -> 45 | F50: =tabula!F50 -> 46 | G50: =tabula!G50 -> 184 | H50: =tabula!H50 -> 90 | I50: =tabula!I50 -> 70 | J50: =tabula!J50 -> 71 | K50: =tabula!K50 -> 34 | L50: =tabula!L50 -> 124 | M50: =tabula!M50 -> 91 | N50: =tabula!N50 -> 46 | O50: =tabula!O50 -> 801 | P50: =tabula!P50 -> 02 min. 19,790 | Q50: =tabula!Q50 -> 38 | R50: =tabula!R50 -> 03,679 sek.
C51: =tabula!C51 -> 44 | D51: =tabula!D51 -> 2-22 | E51: =tabula!E51 -> 71 | F51: =tabula!F51 -> 109 | G51: =tabula!G51 -> 176 | H51: =tabula!H51 -> 37 | I51: =tabula!I51 -> 67 | J51: =tabula!J51 -> 94 | K51: =tabula!K51 -> -13 | L51: =tabula!L51 -> 138 | M51: =tabula!M51 -> 84 | N51: =tabula!N51 -> 35 | O51: =tabula!O51 -> 798 | P51: =tabula!P51 -> 07 min. 41,986 | Q51: =tabula!Q51 -> 47 | R51: =tabula!R51 -> 09,829 sek.
C52: =tabula!C52 -> 45 | D52: =tabula!D52 -> AgInDa | E52: =tabula!E52 -> 51 | F52: =tabula!F52 -> 75 | G52: =tabula!G52 -> 161 | H52: =tabula!H52 -> 62 | I52: =tabula!I52 -> 81 | J52: =tabula!J52 -> 77 | K52: =tabula!K52 -> 0 | L52: =tabula!L52 -> 144 | M52: =tabula!M52 -> 95 | N52: =tabula!N52 -> 42 | O52: =tabula!O52 -> 788 | P52: =tabula!P52 -> 10 min. 44,615 | Q52: =tabula!Q52 -> 50 | R52: =tabula!R52 -> 12,892 sek.
C53: =tabula!C53 -> 46 | D53: =tabula!D53 -> Strocha | E53: =tabula!E53 -> 38 | F53: =tabula!F53 -> 80 | G53: =tabula!G53 -> 131 | H53: =tabula!H53 -> 62 | I53: =tabula!I53 -> 65 | J53: =tabula!J53 -> 65 | K53: =tabula!K53 -> 42 | L53: =tabula!L53 -> 168 | M53: =tabula!M53 -> 81 | N53: =tabula!N53 -> 54 | O53: =tabula!O53 -> 786 | P53: =tabula!P53 -> 06 min. 28,956 | Q53: =tabula!Q53 -> 43 | R53: =tabula!R53 -> 09,045 sek.
C54: =tabula!C54 -> 47 | D54: =tabula!D54 -> Liepājas filologi | E54: =tabula!E54 -> 65 | F54: =tabula!F54 -> 68 | G54: =tabula!G54 -> 171 | H54: =tabula!H54 -> 45 | I54: =tabula!I54 -> 71 | J54: =tabula!J54 -> 77 | K54: =tabula!K54 -> 37 | L54: =tabula!L54 -> 140 | M54: =tabula!M54 -> 74 | N54: =tabula!N54 -> 38 | O54: =tabula!O54 -> 786 | P54: =tabula!P54 -> 05 min. 02,571 | Q54: =tabula!Q54 -> 41 | R54: =tabula!R54 -> 07,380 sek.
C55: =tabula!C55 -> 48 | D55: =tabula!D55 -> Pilskalni | E55: =tabula!E55 -> 61 | F55: =tabula!F55 -> 80 | G55: =tabula!G55 -> 180 | H55: =tabula!H55 -> 20 | I55: =tabula!I55 -> 64 | J55: =tabula!J55 -> 83 | K55: =tabula!K55 -> 36 | L55: =tabula!L55 -> 141 | M55: =tabula!M55 -> 49 | N55: =tabula!N55 -> 61 | O55: =tabula!O55 -> 775 | P55: =tabula!P55 -> 06 min. 08,294 | Q55: =tabula!Q55 -> 43 | R55: =tabula!R55 -> 08,565 sek.
C56: =tabula!C56 -> 49 | D56: =tabula!D56 -> Vilki | E56: =tabula!E56 -> 63 | F56: =tabula!F56 -> 100 | G56: =tabula!G56 -> 150 | H56: =tabula!H56 -> 45 | I56: =tabula!I56 -> 67 | J56: =tabula!J56 -> 94 | K56: =tabula!K56 -> 11 | L56: =tabula!L56 -> 108 | M56: =tabula!M56 -> 92 | N56: =tabula!N56 -> 38 | O56: =tabula!O56 -> 768 | P56: =tabula!P56 -> 06 min. 07,085 | Q56: =tabula!Q56 -> 43 | R56: =tabula!R56 -> 08,537 sek.
C57: =tabula!C57 -> 50 | D57: =tabula!D57 -> Zeiļuki | E57: =tabula!E57 -> 55 | F57: =tabula!F57 -> 65 | G57: =tabula!G57 -> 188 | H57: =tabula!H57 -> 36 | I57: =tabula!I57 -> 94 | J57: =tabula!J57 -> 75 | K57: =tabula!K57 -> 14 | L57: =tabula!L57 -> 133 | M57: =tabula!M57 -> 69 | N57: =tabula!N57 -> 37 | O57: =tabula!O57 -> 766 | P57: =tabula!P57 -> 08 min. 34,946 | Q57: =tabula!Q57 -> 45 | R57: =tabula!R57 -> 11,443 sek.
C59: LIELDRAUGS ATBALSTĪTĀJI

Sheet 51-100
C2: =tabula!C2 -> "Ziemassvētku filmu viktorīna" (tiešsaistē / vebinārā) | 2024.gada 26.decembris
B3: Grupa | C3: # | D3: Dalībnieks | Raunds | Tēma | E3: 1 | F3: 2 | G3: 3 | H3: 4 | I3: 5 | J3: 6 | K3: 7 | L3: 8 | M3: 9 | N3: 10 | O3: KOPĀ | P3: Laiks kopā uz pareizajām atbildēm | Q3: Pareizās atbildes (max) | R3: Vid.laiks uz 1 pareizo atb.
E4: =tabula!E4 -> Pavediens | F4: =tabula!F4 -> Video | G4: =tabula!G4 -> Ekspresis | H4: =tabula!H4 -> Vizuālais | I4: =tabula!I4 -> Citāti | J4: =tabula!J4 -> Galvenie varoņi (kolāži) | K4: =tabula!K4 -> Risks: animācijas filmas | L4: =tabula!L4 -> Kas kopīgs? | M4: =tabula!M4 -> Liekais pazūd: lokācijas | N4: =tabula!N4 -> Audio
D5: Max punkti raundā (bez bonusiem) | E5: 150 | F5: =27*6 -> 162 | G5: 240 | H5: 150 | I5: 150 | J5: 150 | K5: 120 | L5: 180 | M5: 150 | N5: 150 | O5: =SUM(E5:N5) -> 1602
C6: Jautājumi | E6: 6 | F6: 6 | G6: 12 | H6: 6 | I6: 6 | J6: 6 | K6: 6 | L6: 7 | M6: 6 | N6: 6 | Q6: =SUM(E6:N6) -> 67
D7: Vidējie rādītāji | E7: =tabula!E7 -> 52.8 | F7: =tabula!F7 -> 79.3 | G7: =tabula!G7 -> 146.6 | H7: =tabula!H7 -> 65.2 | I7: =tabula!I7 -> 82.9 | J7: =tabula!J7 -> 83.3 | K7: =tabula!K7 -> 33.3 | L7: =tabula!L7 -> 131.3 | M7: =tabula!M7 -> 85.8 | N7: =tabula!N7 -> 65.2 | O7: =tabula!O7 -> 825.8 | P7: =tabula!P7 -> - | Q7: =tabula!Q7 -> 45.8 | R7: =tabula!R7 -> -
B8: 3 | C8: =tabula!C58 -> 51 | D8: =tabula!D58 -> MūrniekiBurgeri | E8: =tabula!E58 -> 34 | F8: =tabula!F58 -> 82 | G8: =tabula!G58 -> 134 | H8: =tabula!H58 -> 100 | I8: =tabula!I58 -> 55 | J8: =tabula!J58 -> 71 | K8: =tabula!K58 -> 30 | L8: =tabula!L58 -> 130 | M8: =tabula!M58 -> 87 | N8: =tabula!N58 -> 36 | O8: =tabula!O58 -> 759 | P8: =tabula!P58 -> 09 min. 10,800 | Q8: =tabula!Q58 -> 48 | R8: =tabula!R58 -> 11,475 sek.
B9: 1 | C9: =tabula!C59 -> 52 | D9: =tabula!D59 -> Kleopīle un draugi | E9: =tabula!E59 -> 23 | F9: =tabula!F59 -> 32 | G9: =tabula!G59 -> 146 | H9: =tabula!H59 -> 40 | I9: =tabula!I59 -> 99 | J9: =tabula!J59 -> 84 | K9: =tabula!K59 -> 21 | L9: =tabula!L59 -> 166 | M9: =tabula!M59 -> 90 | N9: =tabula!N59 -> 58 | O9: =tabula!O59 -> 759 | P9: =tabula!P59 -> 07 min. 03,319 | Q9: =tabula!Q59 -> 44 | R9: =tabula!R59 -> 09,621 sek.
B10: 1 | C10: =tabula!C60 -> 53 | D10: =tabula!D60 -> Ilžuks | E10: =tabula!E60 -> 23 | F10: =tabula!F60 -> 61 | G10: =tabula!G60 -> 176 | H10: =tabula!H60 -> 65 | I10: =tabula!I60 -> 70 | J10: =tabula!J60 -> 100 | K10: =tabula!K60 -> -13 | L10: =tabula!L60 -> 137 | M10: =tabula!M60 -> 63 | N10: =tabula!N60 -> 64 | O10: =tabula!O60 -> 746 | P10: =tabula!P60 -> 04 min. 54,108 | Q10: =tabula!Q60 -> 41 | R10: =tabula!R60 -> 07,173 sek.
B11: 3 | C11: =tabula!C61 -> 54 | D11: =tabula!D61 -> B.A.Baracus | E11: =tabula!E61 -> 28 | F11: =tabula!F61 -> 86 | G11: =tabula!G61 -> 131 | H11: =tabula!H61 -> 81 | I11: =tabula!I61 -> 103 | J11: =tabula!J61 -> 99 | K11: =tabula!K61 -> -15 | L11: =tabula!L61 -> 134 | M11: =tabula!M61 -> 62 | N11: =tabula!N61 -> 34 | O11: =tabula!O61 -> 743 | P11: =tabula!P61 -> 08 min. 49,855 | Q11: =tabula!Q61 -> 47 | R11: =tabula!R61 -> 11,274 sek.
B12: 1 | C12: =tabula!C62 -> 55 | D12: =tabula!D62 -> Jampadracis - matracis | E12: =tabula!E62 -> 22 | F12: =tabula!F62 -> 97 | G12: =tabula!G62 -> 132 | H12: =tabula!H62 -> 62 | I12: =tabula!I62 -> 66 | J12: =tabula!J62 -> 93 | K12: =tabula!K62 -> 7 | L12: =tabula!L62 -> 118 | M12: =tabula!M62 -> 103 | N12: =tabula!N62 -> 33 | O12: =tabula!O62 -> 733 | P12: =tabula!P62 -> 05 min. 57,197 | Q12: =tabula!Q62 -> 42 | R12: =tabula!R62 -> 08,505 sek.
B13: 3 | C13: =tabula!C63 -> 56 | D13: =tabula!D63 -> Mēs minam! | E13: =tabula!E63 -> 43 | F13: =tabula!F63 -> 82 | G13: =tabula!G63 -> 177 | H13: =tabula!H63 -> 63 | I13: =tabula!I63 -> 65 | J13: =tabula!J63 -> 68 | K13: =tabula!K63 -> -18 | L13: =tabula!L63 -> 95 | M13: =tabula!M63 -> 90 | N13: =tabula!N63 -> 65 | O13: =tabula!O63 -> 730 | P13: =tabula!P63 -> 05 min. 45,187 | Q13: =tabula!Q63 -> 41 | R13: =tabula!R63 -> 08,419 sek.
B14: 1 | C14: =tabula!C64 -> 57 | D14: =tabula!D64 -> Kaķīšu komanda | E14: =tabula!E64 -> 68 | F14: =tabula!F64 -> 63 | G14: =tabula!G64 -> 108 | H14: =tabula!H64 -> 56 | I14: =tabula!I64 -> 70 | J14: =tabula!J64 -> 52 | K14: =tabula!K64 -> 37 | L14: =tabula!L64 -> 147 | M14: =tabula!M64 -> 71 | N14: =tabula!N64 -> 54 | O14: =tabula!O64 -> 726 | P14: =tabula!P64 -> 08 min. 33,347 | Q14: =tabula!Q64 -> 44 | R14: =tabula!R64 -> 11,667 sek.
C15: =tabula!C65 -> 58 | D15: =tabula!D65 -> Ēzelītis I-Ā | E15: =tabula!E65 -> 40 | F15: =tabula!F65 -> 45 | G15: =tabula!G65 -> 125 | H15: =tabula!H65 -> 46 | I15: =tabula!I65 -> 54 | J15: =tabula!J65 -> 75 | K15: =tabula!K65 -> 57 | L15: =tabula!L65 -> 106 | M15: =tabula!M65 -> 60 | N15: =tabula!N65 -> 116 | O15: =tabula!O65 -> 724 | P15: =tabula!P65 -> 10 min. 15,045 | Q15: =tabula!Q65 -> 47 | R15: =tabula!R65 -> 13,086 sek.
C16: =tabula!C66 -> 59 | D16: =tabula!D66 -> SIDRS | E16: =tabula!E66 -> 39 | F16: =tabula!F66 -> 68 | G16: =tabula!G66 -> 108 | H16: =tabula!H66 -> 39 | I16: =tabula!I66 -> 81 | J16: =tabula!J66 -> 86 | K16: =tabula!K66 -> 33 | L16: =tabula!L66 -> 137 | M16: =tabula!M66 -> 78 | N16: =tabula!N66 -> 47 | O16: =tabula!O66 -> 716 | P16: =tabula!P66 -> 08 min. 46,334 | Q16: =tabula!Q66 -> 43 | R16: =tabula!R66 -> 12,240 sek.
C17: =tabula!C67 -> 60 | D17: =tabula!D67 -> Poldera ielas Republika | E17: =tabula!E67 -> 79 | F17: =tabula!F67 -> 103 | G17: =tabula!G67 -> 163 | H17: =tabula!H67 -> 19 | I17: =tabula!I67 -> 56 | J17: =tabula!J67 -> 43 | K17: =tabula!K67 -> 7 | L17: =tabula!L67 -> 117 | M17: =tabula!M67 -> 74 | N17: =tabula!N67 -> 53 | O17: =tabula!O67 -> 714 | P17: =tabula!P67 -> 06 min. 37,579 | Q17: =tabula!Q67 -> 42 | R17: =tabula!R67 -> 09,466 sek.
C18: =tabula!C68 -> 61 | D18: =tabula!D68 -> Haizivis uzvalkos | E18: =tabula!E68 -> 24 | F18: =tabula!F68 -> 81 | G18: =tabula!G68 -> 77 | H18: =tabula!H68 -> 32 | I18: =tabula!I68 -> 55 | J18: =tabula!J68 -> 83 | K18: =tabula!K68 -> 68 | L18: =tabula!L68 -> 119 | M18: =tabula!M68 -> 88 | N18: =tabula!N68 -> 76 | O18: =tabula!O68 -> 703 | P18: =tabula!P68 -> 07 min. 59,792 | Q18: =tabula!Q68 -> 44 | R18: =tabula!R68 -> 10,904 sek.
C19: =tabula!C69 -> 62 | D19: =tabula!D69 -> KejPī | E19: =tabula!E69 -> 39 | F19: =tabula!F69 -> 45 | G19: =tabula!G69 -> 175 | H19: =tabula!H69 -> 87 | I19: =tabula!I69 -> 44 | J19: =tabula!J69 -> 105 | K19: =tabula!K69 -> 1 | L19: =tabula!L69 -> 117 | M19: =tabula!M69 -> 46 | N19: =tabula!N69 -> 44 | O19: =tabula!O69 -> 703 | P19: =tabula!P69 -> 03 min. 04,161 | Q19: =tabula!Q69 -> 36 | R19: =tabula!R69 -> 05,116 sek.
C20: =tabula!C70 -> 63 | D20: =tabula!D70 -> Madeira | E20: =tabula!E70 -> 80 | F20: =tabula!F70 -> 42 | G20: =tabula!G70 -> 129 | H20: =tabula!H70 -> 40 | I20: =tabula!I70 -> 64 | J20: =tabula!J70 -> 45 | K20: =tabula!K70 -> 32 | L20: =tabula!L70 -> 138 | M20: =tabula!M70 -> 36 | N20: =tabula!N70 -> 93 | O20: =tabula!O70 -> 699 | P20: =tabula!P70 -> 04 min. 41,476 | Q20: =tabula!Q70 -> 37 | R20: =tabula!R70 -> 07,607 sek.
C21: =tabula!C71 -> 64 | D21: =tabula!D71 -> Rupucīši | E21: =tabula!E71 -> 51 | F21: =tabula!F71 -> 63 | G21: =tabula!G71 -> 125 | H21: =tabula!H71 -> 74 | I21: =tabula!I71 -> 62 | J21: =tabula!J71 -> 75 | K21: =tabula!K71 -> 7 | L21: =tabula!L71 -> 101 | M21: =tabula!M71 -> 79 | N21: =tabula!N71 -> 57 | O21: =tabula!O71 -> 694 | P21: =tabula!P71 -> 08 min. 06,824 | Q21: =tabula!Q71 -> 41 | R21: =tabula!R71 -> 11,874 sek.
C22: =tabula!C72 -> 65 | D22: =tabula!D72 -> LaFamiliya | E22: =tabula!E72 -> 30 | F22: =tabula!F72 -> 69 | G22: =tabula!G72 -> 134 | H22: =tabula!H72 -> 35 | I22: =tabula!I72 -> 65 | J22: =tabula!J72 -> 73 | K22: =tabula!K72 -> 54 | L22: =tabula!L72 -> 128 | M22: =tabula!M72 -> 75 | N22: =tabula!N72 -> 30 | O22: =tabula!O72 -> 693 | P22: =tabula!P72 -> 07 min. 30,601 | Q22: =tabula!Q72 -> 42 | R22: =tabula!R72 -> 10,729 sek.
C23: =tabula!C73 -> 66 | D23: =tabula!D73 -> LAPSA | E23: =tabula!E73 -> 57 | F23: =tabula!F73 -> 47 | G23: =tabula!G73 -> 108 | H23: =tabula!H73 -> 48 | I23: =tabula!I73 -> 81 | J23: =tabula!J73 -> 53 | K23: =tabula!K73 -> 37 | L23: =tabula!L73 -> 92 | M23: =tabula!M73 -> 82 | N23: =tabula!N73 -> 68 | O23: =tabula!O73 -> 673 | P23: =tabula!P73 -> 08 min. 21,509 | Q23: =tabula!Q73 -> 41 | R23: =tabula!R73 -> 12,232 sek.
C24: =tabula!C74 -> 67 | D24: =tabula!D74 -> Lauvas | E24: =tabula!E74 -> 31 | F24: =tabula!F74 -> 76 | G24: =tabula!G74 -> 183 | H24: =tabula!H74 -> 39 | I24: =tabula!I74 -> 85 | J24: =tabula!J74 -> 93 | K24: =tabula!K74 -> -39 | L24: =tabula!L74 -> 122 | M24: =tabula!M74 -> 21 | N24: =tabula!N74 -> 56 | O24: =tabula!O74 -> 667 | P24: =tabula!P74 -> 06 min. 16,124 | Q24: =tabula!Q74 -> 39 | R24: =tabula!R74 -> 09,644 sek.
C25: =tabula!C75 -> 68 | D25: =tabula!D75 -> Balandas | E25: =tabula!E75 -> 12 | F25: =tabula!F75 -> 60 | G25: =tabula!G75 -> 128 | H25: =tabula!H75 -> 67 | I25: =tabula!I75 -> 68 | J25: =tabula!J75 -> 103 | K25: =tabula!K75 -> -23 | L25: =tabula!L75 -> 109 | M25: =tabula!M75 -> 12 | N25: =tabula!N75 -> 82 | O25: =tabula!O75 -> 618 | P25: =tabula!P75 -> 04 min. 09,645 | Q25: =tabula!Q75 -> 33 | R25: =tabula!R75 -> 07,565 sek.
C26: =tabula!C76 -> 69 | D26: =tabula!D76 -> Close enough | E26: =tabula!E76 -> 0 | F26: =tabula!F76 -> 0 | G26: =tabula!G76 -> 0 | H26: =tabula!H76 -> 55 | I26: =tabula!I76 -> 110 | J26: =tabula!J76 -> 91 | K26: =tabula!K76 -> 25 | L26: =tabula!L76 -> 161 | M26: =tabula!M76 -> 129 | N26: =tabula!N76 -> 45 | O26: =tabula!O76 -> 616 | P26: =tabula!P76 -> 04 min. 50,072 | Q26: =tabula!Q76 -> 32 | R26: =tabula!R76 -> 09,065 sek.
C27: =tabula!C77 -> 70 | D27: =tabula!D77 -> Žoga vāveres | E27: =tabula!E77 -> 29 | F27: =tabula!F77 -> 21 | G27: =tabula!G77 -> 162 | H27: =tabula!H77 -> 44 | I27: =tabula!I77 -> 64 | J27: =tabula!J77 -> 60 | K27: =tabula!K77 -> -24 | L27: =tabula!L77 -> 87 | M27: =tabula!M77 -> 57 | N27: =tabula!N77 -> 112 | O27: =tabula!O77 -> 612 | P27: =tabula!P77 -> 06 min. 53,869 | Q27: =tabula!Q77 -> 38 | R27: =tabula!R77 -> 10,891 sek.
C28: =tabula!C78 -> 71 | D28: =tabula!D78 -> Burundux | E28: =tabula!E78 -> 0 | F28: =tabula!F78 -> 0 | G28: =tabula!G78 -> 110 | H28: =tabula!H78 -> 74 | I28: =tabula!I78 -> 91 | J28: =tabula!J78 -> 65 | K28: =tabula!K78 -> -5 | L28: =tabula!L78 -> 104 | M28: =tabula!M78 -> 141 | N28: =tabula!N78 -> 31 | O28: =tabula!O78 -> 611 | P28: =tabula!P78 -> 04 min. 18,401 | Q28: =tabula!Q78 -> 33 | R28: =tabula!R78 -> 07,830 sek.
C29: =tabula!C79 -> 72 | D29: =tabula!D79 -> Končas | E29: =tabula!E79 -> 29 | F29: =tabula!F79 -> 76 | G29: =tabula!G79 -> 125 | H29: =tabula!H79 -> 18 | I29: =tabula!I79 -> 66 | J29: =tabula!J79 -> 63 | K29: =tabula!K79 -> 15 | L29: =tabula!L79 -> 119 | M29: =tabula!M79 -> 38 | N29: =tabula!N79 -> 58 | O29: =tabula!O79 -> 607 | P29: =tabula!P79 -> 05 min. 18,074 | Q29: =tabula!Q79 -> 36 | R29: =tabula!R79 -> 08,835 sek.
C30: =tabula!C80 -> 73 | D30: =tabula!D80 -> Liiiii | E30: =tabula!E80 -> 29 | F30: =tabula!F80 -> 63 | G30: =tabula!G80 -> 132 | H30: =tabula!H80 -> 54 | I30: =tabula!I80 -> 62 | J30: =tabula!J80 -> 57 | K30: =tabula!K80 -> 12 | L30: =tabula!L80 -> 101 | M30: =tabula!M80 -> 65 | N30: =tabula!N80 -> 31 | O30: =tabula!O80 -> 606 | P30: =tabula!P80 -> 05 min. 38,692 | Q30: =tabula!Q80 -> 34 | R30: =tabula!R80 -> 09,962 sek.
C31: =tabula!C81 -> 74 | D31: =tabula!D81 -> PIPARI | E31: =tabula!E81 -> 52 | F31: =tabula!F81 -> 21 | G31: =tabula!G81 -> 128 | H31: =tabula!H81 -> 45 | I31: =tabula!I81 -> 91 | J31: =tabula!J81 -> 51 | K31: =tabula!K81 -> -28 | L31: =tabula!L81 -> 95 | M31: =tabula!M81 -> 97 | N31: =tabula!N81 -> 35 | O31: =tabula!O81 -> 587 | P31: =tabula!P81 -> 03 min. 46,969 | Q31: =tabula!Q81 -> 31 | R31: =tabula!R81 -> 07,322 sek.
C32: =tabula!C82 -> 75 | D32: =tabula!D82 -> Stams | E32: =tabula!E82 -> 46 | F32: =tabula!F82 -> 81 | G32: =tabula!G82 -> 137 | H32: =tabula!H82 -> 52 | I32: =tabula!I82 -> 64 | J32: =tabula!J82 -> 33 | K32: =tabula!K82 -> 14 | L32: =tabula!L82 -> 80 | M32: =tabula!M82 -> 39 | N32: =tabula!N82 -> 39 | O32: =tabula!O82 -> 585 | P32: =tabula!P82 -> 06 min. 43,427 | Q32: =tabula!Q82 -> 36 | R32: =tabula!R82 -> 11,206 sek.
C33: =tabula!C83 -> 76 | D33: =tabula!D83 -> Sniega nav | E33: =tabula!E83 -> 51 | F33: =tabula!F83 -> 93 | G33: =tabula!G83 -> 118 | H33: =tabula!H83 -> 56 | I33: =tabula!I83 -> 67 | J33: =tabula!J83 -> 69 | K33: =tabula!K83 -> -62 | L33: =tabula!L83 -> 90 | M33: =tabula!M83 -> 76 | N33: =tabula!N83 -> 23 | O33: =tabula!O83 -> 581 | P33: =tabula!P83 -> 06 min. 39,936 | Q33: =tabula!Q83 -> 38 | R33: =tabula!R83 -> 10,525 sek.
C34: =tabula!C84 -> 77 | D34: =tabula!D84 -> Skolas iela | E34: =tabula!E84 -> 11 | F34: =tabula!F84 -> 76 | G34: =tabula!G84 -> 149 | H34: =tabula!H84 -> 42 | I34: =tabula!I84 -> 62 | J34: =tabula!J84 -> 51 | K34: =tabula!K84 -> -21 | L34: =tabula!L84 -> 68 | M34: =tabula!M84 -> 59 | N34: =tabula!N84 -> 74 | O34: =tabula!O84 -> 571 | P34: =tabula!P84 -> 05 min. 58,331 | Q34: =tabula!Q84 -> 35 | R34: =tabula!R84 -> 10,238 sek.
C35: =tabula!C85 -> 78 | D35: =tabula!D85 -> Pērļainie trīnīši | E35: =tabula!E85 -> 58 | F35: =tabula!F85 -> 45 | G35: =tabula!G85 -> 143 | H35: =tabula!H85 -> 39 | I35: =tabula!I85 -> 87 | J35: =tabula!J85 -> 63 | K35: =tabula!K85 -> -34 | L35: =tabula!L85 -> 24 | M35: =tabula!M85 -> 57 | N35: =tabula!N85 -> 56 | O35: =tabula!O85 -> 538 | P35: =tabula!P85 -> 05 min. 16,549 | Q35: =tabula!Q85 -> 34 | R35: =tabula!R85 -> 09,310 sek.
C36: =tabula!C86 -> 79 | D36: =tabula!D86 -> Stendes | E36: =tabula!E86 -> 19 | F36: =tabula!F86 -> 33 | G36: =tabula!G86 -> 144 | H36: =tabula!H86 -> 57 | I36: =tabula!I86 -> 65 | J36: =tabula!J86 -> 52 | K36: =tabula!K86 -> -10 | L36: =tabula!L86 -> 91 | M36: =tabula!M86 -> 65 | N36: =tabula!N86 -> 16 | O36: =tabula!O86 -> 532 | P36: =tabula!P86 -> 07 min. 50,529 | Q36: =tabula!Q86 -> 37 | R36: =tabula!R86 -> 12,717 sek.
C37: =tabula!C87 -> 80 | D37: =tabula!D87 -> Rūķīši un Eglīte | E37: =tabula!E87 -> 36 | F37: =tabula!F87 -> 45 | G37: =tabula!G87 -> 150 | H37: =tabula!H87 -> 30 | I37: =tabula!I87 -> 59 | J37: =tabula!J87 -> 29 | K37: =tabula!K87 -> -14 | L37: =tabula!L87 -> 68 | M37: =tabula!M87 -> 71 | N37: =tabula!N87 -> 48 | O37: =tabula!O87 -> 522 | P37: =tabula!P87 -> 05 min. 23,756 | Q37: =tabula!Q87 -> 32 | R37: =tabula!R87 -> 10,117 sek.
C38: =tabula!C88 -> 81 | D38: =tabula!D88 -> Toms un Džerijs | E38: =tabula!E88 -> 22 | F38: =tabula!F88 -> 51 | G38: =tabula!G88 -> 113 | H38: =tabula!H88 -> 0 | I38: =tabula!I88 -> 64 | J38: =tabula!J88 -> 21 | K38: =tabula!K88 -> 47 | L38: =tabula!L88 -> 105 | M38: =tabula!M88 -> 33 | N38: =tabula!N88 -> 40 | O38: =tabula!O88 -> 496 | P38: =tabula!P88 -> 04 min. 48,383 | Q38: =tabula!Q88 -> 29 | R38: =tabula!R88 -> 09,944 sek.
C39: =tabula!C89 -> 82 | D39: =tabula!D89 -> Ciruliši | E39: =tabula!E89 -> 0 | F39: =tabula!F89 -> 17 | G39: =tabula!G89 -> 112 | H39: =tabula!H89 -> 0 | I39: =tabula!I89 -> 71 | J39: =tabula!J89 -> 65 | K39: =tabula!K89 -> 67 | L39: =tabula!L89 -> 89 | M39: =tabula!M89 -> 30 | N39: =tabula!N89 -> 31 | O39: =tabula!O89 -> 482 | P39: =tabula!P89 -> 03 min. 52,236 | Q39: =tabula!Q89 -> 27 | R39: =tabula!R89 -> 08,601 sek.
C40: =tabula!C90 -> 83 | D40: =tabula!D90 -> Mikijs | E40: =tabula!E90 -> 0 | F40: =tabula!F90 -> 0 | G40: =tabula!G90 -> 0 | H40: =tabula!H90 -> 0 | I40: =tabula!I90 -> 0 | J40: =tabula!J90 -> 0 | K40: =tabula!K90 -> 4 | L40: =tabula!L90 -> 129 | M40: =tabula!M90 -> 58 | N40: =tabula!N90 -> 17 | O40: =tabula!O90 -> 208 | P40: =tabula!P90 -> 04 min. 10,717 | Q40: =tabula!Q90 -> 15 | R40: =tabula!R90 -> 16,714 sek.
C42: LIELDRAUGS ATBALSTĪTĀJI

Sheet raundi
B2: =CONCATENATE(tabula!C2," --> Raundu uzvarētāji") -> "Ziemassvētku filmu viktorīna" (tiešsaistē / vebinārā) | 2024.gada 26.decembris --> Raundu uzvarētāji
B3: # | C3: Raunda nosaukums | D3: Dalībnieks | E3: Rezultāts | F3: AVG | G3: MAX | H3: % no max
B4: 1 | C4: =TRANSPOSE(tabula!E4:N4) -> Pavediens | D4: Pīters Penis | E4: 105 | F4: =TRANSPOSE(tabula!E7:N7) -> 52.8 | G4: =TRANSPOSE(tabula!E5:N5) -> 150 | H4: =E4/G4 -> 0.7
B5: 2 | C5: Video | D5: Shakin’ Stevens | E5: 137 | F5: 79.3 | G5: 150 | H5: =E5/G5 -> 0.9133333333
B6: 3 | C6: Ekspresis | D6: Pelēkie zirņi | E6: 216 | F6: 146.6 | G6: 240 | H6: 0.9
B7: 4 | C7: Vizuālais | D7: Kas neriskē,nedzer šampanieti | E7: 124 | F7: 65.2 | G7: 150 | H7: 0.8266666667
B8: 5 | C8: Citāti | D8: Ļoti labi | E8: 126 | F8: 82.9 | G8: 150 | H8: 0.84
B9: 6 | C9: Galvenie varoņi (kolāži) | D9: Shakin’ Stevens | E9: 135 | F9: 83.3 | G9: 150 | H9: 0.9
B10: 7 | C10: Risks: animācijas filmas | D10: Inspektors ieskandina ritmā | E10: 104 | F10: 33.3 | G10: 120 | H10: 0.8666666667
B11: 8 | C11: Kas kopīgs? | D11: ttomstt | E11: 176 | F11: 131.3 | G11: 180 | H11: 0.9777777778
B12: 9 | C12: Liekais pazūd: lokācijas | D12: Sindija DJV | E12: 150 | F12: 85.8 | G12: 150 | H12: 1
B13: 10 | C13: Audio | D13: Ēzelītis I-Ā | E13: 116 | F13: 65.2 | G13: 150 | H13: 0.7733333333
B14: - | C14: Uzvarētājs | E14: =tabula!O8 -> 1156 | F14: =tabula!O7 -> 825.8 | G14: =SUM(G4:G13) -> 1590 | H14: =E14/G14 -> 0.7270440252
C15: =tabula!D8 -> nezinu
B17: LIELDRAUGS ATBALSTĪTĀJI
